Cogmind - Beta 13 @@@ ROGUE MODE // 2024.04.06 @ 20:28:23 Player: Redman9012 Result: Destroyed by BL-O99(R) with Subdweller Laser Performance ------------- Evolutions (0) 0 Regions Visited (2) 400 Robots Destroyed (17) 85 Value Destroyed (342) 342 Prototype IDs (0) 0 Alien Tech Used (0) 0 Bonus (0) 0 TOTAL SCORE: 827 Bonus ------- None Cogmind --------- Core Integrity 0/250 Matter 285/300 Energy 249/250 System Corruption 2% Temperature Cool (6) Movement Treading (720) Ox7 Location -10/Subcaves Parts ------- > --- POWER (1) -------- Ion Engine > --- PROPULSION (2) --- Light Treads > --- UTILITY (2) ------ Cargo Storage Unit > --- WEAPON (2) ------- Medium Laser Assault Rifle > --- INVENTORY (30) --- Subdweller Monowheel Heat Sink Signal Interpreter Assault Rifle Light Cannon Battle Cannon Peak State ------------ > --- POWER ------------ Ion Engine > --- PROPULSION ------- Light Treads > --- UTILITY ---------- Heat Sink Small Storage Unit > --- WEAPON ----------- Light Assault Rifle Light Assault Rifle > --- INVENTORY -------- Aluminum Leg Improved Terrain Scanner Seismic Detector Medium Laser Medium Laser Medium Laser Light Assault Rifle Light Assault Rifle [Rating: 7] Favorites ----------- Power Ion Engine Engine Ion Engine Propulsion Light Treads Treads Light Treads Utility Heat Sink Device Heat Sink Storage Small Storage Unit Weapon Light Assault Rifle Energy Gun Medium Laser Ballistic Gun Light Assault Rifle Build | -11 -10 -10 ------- Run | Yrd Mat Sub Slots Evolved . | . . . Power . | . . . Propulsion . | . . . Utility . | . . . Weapon . | . . . Parts Attached 16 | 6 9 1 Power 2 | 1 1 . Engine 2 | 1 1 . Core . | . . . Reactor . | . . . Propulsion 3 | 2 1 . Treads 3 | 2 1 . Leg . | . . . Wheel . | . . . Hover . | . . . Flight . | . . . Utility 5 | 1 3 1 Device 2 | . 2 . Storage 3 | 1 1 1 Processor . | . . . Hackware . | . . . Protection . | . . . Artifact . | . . . Weapon 6 | 2 4 . Energy Gun 2 | 1 1 . Energy Cannon . | . . . Ballistic Gun 4 | 1 3 . Ballistic Cannon . | . . . Launcher . | . . . Special Weapon . | . . . Impact Weapon . | . . . Slashing Weapon . | . . . Piercing Weapon . | . . . Special Melee Weapon . | . . . Unidentified Prototypes . | . . . Parts Lost 5 | . 3 2 Power 1 | . 1 . Propulsion 1 | . 1 . Utility 1 | . . 1 Weapon 2 | . 1 1 Highest Loss Streak 3 | . 3 2 To Critical Strikes . | . . . Average Slot Usage (%) 82 | . 82 81 Engine 13 | . 13 14 Treads 14 | . 14 14 Device 11 | . 12 10 Storage 13 | . 13 14 Energy Gun 6 | . 5 14 Ballistic Gun 21 | . 22 14 Naked Turns . | . . . Heaviest Build 149 | 13 20 149 Greatest Support 40 | 40 40 20 Greatest Overweight (x) 7 | . . 7 Average Overweight (x) . | . . . Largest Inventory Capacity 30 | 8 10 30 Average Capacity 9 | 7 8 15 Most Carried 10 | 6 10 10 Average Carried 7 | 2 7 8 Final Capacity 30 | 8 10 30 Final Carried 10 | 2 10 6 Class Distribution -------------------- 97% | Mutant Dominant Class ---------------- Mutant | -10/Materials Mutant | -10/Subcaves Resources | -11 -10 -10 ----------- Run | Yrd Mat Sub Matter Collected 468 | 246 171 51 Remotely . | . . . Salvage Created 570 | . 570 . Parts 44 | . 44 . Haulers Intercepted 1 | . 1 . Recyclers Shooed 3 | . 3 . Parts Field Recycled . | . . . Retrieved Matter . | . . . Parts Self-Destructed . | . . . Prevented . | . . . Kills | -11 -10 -10 ------- Run | Yrd Mat Sub Combat Hostiles Destroyed 13 | . 13 . Guns 12 | . 12 . Classes Destroyed 6 | . 6 . Tunneler 1 | . 1 . Hauler 1 | . 1 . Recycler 1 | . 1 . Watcher 1 | . 1 . Swarmer 6 | . 6 . Grunt 7 | . 7 . Best Kill Streak 7 | . 7 . Combat Bots Only 7 | . 7 . Max Kills in Single Turn 1 | . 1 . Gunslinging . | . . . Exploded . | . . . Melee . | . . . Uniques/NPCs Destroyed . | . . . Combat | -11 -10 -10 -------- Run | Yrd Mat Sub Hostile Shots Fired 114 | . 102 12 Missed 33 | . 31 2 Damage Taken 896 | . 689 207 Core 251 | . 124 127 Absorbed by Shields . | . . . Regen/Repaired (Parts) 102 | . 102 . Core Remaining (%) 100 | 100 . . Volleys Fired 75 | . 70 5 Largest 2 | . 2 2 Hottest 70 | . 70 70 Shots Fired 150 | . 140 10 Gun 150 | . 140 10 Cannon . | . . . Launcher . | . . . Special . | . . . Kinetic 119 | . 114 5 Thermal 31 | . 26 5 Explosive . | . . . Electromagnetic . | . . . Robot Hit Streak 11 | . 11 10 Robot Miss Streak 3 | . 3 . Penetration Max . | . . . Secondary Targets 4 | . 4 . Max Gunslinging Chain 1 | . 1 . Shots Hit Robots 99 | . 89 10 Core Hits 38 | . 38 . Critical Kills . | . . . Critical Parts Destroyed . | . . . Critical Strikes 2 | . 2 . Burn 2 | . 2 . Melee Attacks . | . . . Impact . | . . . Slashing . | . . . Piercing . | . . . Sneak Attacks . | . . . Combat Hostiles . | . . . Follow-up Attacks . | . . . Damage Inflicted 854 | . 854 . Guns 849 | . 849 . Cannons . | . . . Explosions . | . . . Melee . | . . . Ramming 5 | . 5 . Kinetic 613 | . 613 . Thermal 236 | . 236 . Explosive . | . . . Electromagnetic . | . . . Impact . | . . . Slashing . | . . . Piercing . | . . . Highest Corruption 2 | . 2 2 Average Corruption 1 | . 1 2 Corruption Purged . | . . . Corruption Blocked . | . . . Effects 14 | . 12 2 Message Errors 2 | . 2 . Matter Fused 2 | . 2 . Heat Flow Errors 2 | . 1 1 Energy Discharges 3 | . 3 . Data Loss (minor) 3 | . 2 1 Misfires 2 | . 2 . Overload Shots . | . . . Overflow Damage . | . . . Projectiles . | . . . Explosions . | . . . Melee . | . . . Knockbacks . | . . . Impact . | . . . Kinetic . | . . . Secondary . | . . . Self-Inflicted Damage . | . . . Shots . | . . . Rammed 3 | . 3 . Targets Rammed 3 | . 3 . Kicked . | . . . Crushed . | . . . Highest Temperature 216 | . 216 80 Average Temperature 74 | . 74 55 Received Heat Transfer 288 | . 228 60 Siege Activations . | . . . Robots Corrupted . | . . . Combat Hostiles . | . . . Parts Fried . | . . . Impact Corruptions . | . . . Robots Melted 1 | . 1 . Combat Hostiles 1 | . 1 . Parts Melted 1 | . 1 . Heat Transferred 851 | . 851 . Parts Sabotaged . | . . . Parts Stolen . | . . . Parts Stripped . | . . . Power Chain Reactions . | . . . Alert | -11 -10 -10 ------- Run | Yrd Mat Sub Peak Influence 339 | . 339 . Initial . | . . . Average 133 | . 139 . Maximum Alert Level 1 | . 1 . Low Security (%) 75 | 100 74 . Level 1 24 | . 25 . Level 2 . | . . . Level 3 . | . . . Level 4 . | . . . Level 5 . | . . . High Security . | . . . Max Security . | . . . Squads Dispatched 4 | . 4 . Investigation 2 | . 2 . Extermination . | . . . Reinforcement 2 | . 2 . Assault . | . . . Garrison . | . . . Intercept . | . . . Searches Triggered . | . . . Construction Impeded . | . . . Haulers Reinforced . | . . . Active Scanning Responses . | . . . Cargo Convoy Interrupts . | . . . Stealth | -11 -10 -10 --------- Run | Yrd Mat Sub Distress Signals 1 | . 1 . Communications Jammed . | . . . Distress Signals . | . . . Times Spotted 36 | . 35 1 Peak Tracking Total 7 | . 7 1 Tactical Retreats 2 | . 2 . Traps | -11 -10 -10 ------- Run | Yrd Mat Sub Traps Triggered 2 | . 2 . Indirectly . | . . . Trap Hack Attempts . | . . . Triggered . | . . . Disarmed . | . . . Reprogrammed . | . . . Reused . | . . . Traps Extracted . | . . . Installed . | . . . Triggered . | . . . Machines | -11 -10 -10 ---------- Run | Yrd Mat Sub Machines Disabled . | . . . Max in Single Turn . | . . . Machines Repaired . | . . . Machines Dismantled . | . . . Machines Sabotaged . | . . . Overloaded Fab Kills . | . . . Hacking | -11 -10 -10 --------- Run | Yrd Mat Sub Machines Accessed 6 | . 6 . Terminals 4 | . 4 . Fabricators . | . . . Repair Stations 1 | . 1 . Recycling Units 1 | . 1 . Scanalyzers . | . . . Garrison Access . | . . . Total Hacks 24 | . 24 . Successful 12 | . 12 . Failed 12 | . 12 . Catastrophic 1 | . 1 . Database Lockouts . | . . . Manual 2 | . 2 . Terminals 15 | . 15 . Fabricators . | . . . Repair Stations 7 | . 7 . Recycling Units 2 | . 2 . Scanalyzers . | . . . Garrison Access . | . . . Terminal Hacks 5 | . 5 . Record 1 | . 1 . Emergency Access Points 2 | . 2 . Alert Level 2 | . 2 . Fabricator Hacks . | . . . Repair Station Hacks 5 | . 5 . Scan Component 3 | . 3 . Repair 1 | . 1 . Refit 1 | . 1 . Recycling Unit Hacks 2 | . 2 . Report Inventory 1 | . 1 . Retrieve Components 1 | . 1 . Scanalyzer . | . . . Garrison Access Hacks . | . . . Unauthorized Hacks . | . . . Terminals . | . . . Fabricators . | . . . Repair Stations . | . . . Recycling Units . | . . . Scanalyzers . | . . . Garrison Access . | . . . Data Cores Recovered . | . . . Used . | . . . Hacking Detections 5 | . 5 . Full Trace Events 5 | . 5 . Feedback Events . | . . . Feedback Blocked . | . . . Robot Schematics Acquired . | . . . Robots Built . | . . . Authchips . | . . . Time . | . . . Total Robot Build Rating . | . . . Part Schematics Acquired . | . . . Parts Built . | . . . Authchips . | . . . Time . | . . . Total Part Build Rating . | . . . Parts Repaired 1 | . 1 . Time 26 | . 26 . Parts Recycled . | . . . Recycled Matter . | . . . Retrieved Matter . | . . . Retrieved Components 10 | . 10 . Parts Scanalyzed . | . . . Part Schematics Acquired . | . . . Parts Damaged . | . . . Bothacking | -11 -10 -10 ------------ Run | Yrd Mat Sub Used RIF Installer . | . . . Robots Hacked . | . . . Non-combat . | . . . Combat . | . . . Robot Hacks Applied . | . . . Relay Couplers Released . | . . . Fabnet Peak Effective % . | . . . Robots Rewired . | . . . Allies Hacked . | . . . Hacks Repelled . | . . . Allies | -11 -10 -10 -------- Run | Yrd Mat Sub Total Allies . | . . . Largest Group . | . . . Highest-Rated Group . | . . . Highest-Rated Ally . | . . . Total Orders . | . . . Ally Attacks . | . . . Total Damage . | . . . Kills . | . . . Allies Corrupted . | . . . Allies Melted . | . . . Intel | -11 -10 -10 ------- Run | Yrd Mat Sub Robot Analysis Total . | . . . Derelict Logs Recovered . | . . . Drone Launches . | . . . Drone Recoveries . | . . . Exploration | -11 -10 -10 ------------- Run | Yrd Mat Sub Turns Passed 1823 | 71 1573 179 Spaces Moved 817 | 41 693 83 Core 7 | 7 . . Treads 810 | 34 693 83 Legs . | . . . Wheels . | . . . Hover . | . . . Flight . | . . . Fastest Speed 50 | 50 160 160 Average Speed 162 | 141 160 193 Slowest Speed 720 | 160 160 720 Overloaded Moves . | . . . Propulsion Burnouts . | . . . Robots Hopped . | . . . Cave-ins Triggered . | . . . Exploration Rate (%) 34 | 4 89 10 Regions Visited 2 Branch Regions 1 Pre-discovered Areas . | . . . Known Exits Taken . | . . . Unknown Exits Taken 2 | 1 1 . Scrap Searched 3 | . . 3 Spaces Dug . | . . . Terrain Destroyed . | . . . Melee . | . . . Projectile . | . . . AOE . | . . . Terrain Rammed . | . . . Walls Destroyed . | . . . Machines Disabled . | . . . Actions | -11 -10 -10 --------- Run | Yrd Mat Sub Total 1194 | 54 1046 94 Wait 235 | . 235 . Move 815 | 40 692 83 Hop . | . . . Pick Up 36 | 8 25 3 Fast Attach . | . . . Attach 16 | 6 9 1 Detach . | . . . Swap . | . . . Drop 14 | . 12 2 Fire 75 | . 70 5 Melee . | . . . Ram . | . . . Kick . | . . . Crush 3 | . 3 . Escape Stasis . | . . . Rewire . | . . . Trap . | . . . Miscellaneous . | . . . Route ------- -11/Scrapyard -10/Materials (discovered 6 exits: [*Mat x3] / [*Min x2] / [*Sub]) -10/Subcaves History --------- Turn | Location | Event 8 | -11/Scrapyard | Discovered new exit (range 16) 72 | -11/Scrapyard | Entered Materials 202 | -10/Materials | Lost 3 parts (1p1n1w) 207 | -10/Materials | Destroyed 7 combat bots 305 | -10/Materials | Build established: Mutant 423 | -10/Materials | Discovered new exit (range 16) 634 | -10/Materials | Discovered new exit (range 7) 698 | -10/Materials | Discovered new exit (range 3) 845 | -10/Materials | Discovered new exit (range 15) 1327 | -10/Materials | Discovered new exit (range 7) 1374 | -10/Materials | Repaired Lgt. Treads 1626 | -10/Materials | Discovered new exit (range 10) 1645 | -10/Materials | Entered Subcaves 1653 | -10/Subcaves | A swath of the cavern ceiling suddenly collapsed 1801 | -10/Subcaves | Disturbed a concealed Subdweller 1805 | -10/Subcaves | Core integrity fell below 50% 1817 | -10/Subcaves | Core integrity fell below 20% 1824 | -10/Subcaves | Destroyed by BL-O99(R) with Subdweller Laser Last Messages --------------- 01767_ Found 18 Matter. 01768_ Acquired 8 matter. 01769_ Subatomizers dissect the Sub. Power Source. 01769_ Searching scrap... 01769_ Found Battle Cannon. 01769_ Found 11 Matter. 01770_ Dropped Heat Sink. 01771_ Dropped Med. Storage Unit. 01771_ Med. Laser crushed and broken. 01771_ Visual Processing Unit crushed and broken. 01771_ Lgt. Cannon crushed and broken. 01772_ Acquired 10 matter. 01779_ Acquired Sub. Monowheel. 01781_ Subatomizers dissect the Heat Sink. 01788_ Acquired Battle Cannon. 01794_ Subatomizers dissect the Heat Sink. 01796_ Acquired Heat Sink. 01801_ BL-O99(R) angrily emerges from the Twisted Machinery. 01804_ Subatomizers dissect the Sub. Power Source. 01815_ Subatomizers dissect the Battle Rifle. Map ----- +----------------------------------------------------+ | ?????????????????????????????????????????????????? | | ?????????????????????????????????????????????????? | | ?????????????????????????????????????????????????? | | ?????????????????????????????????????????????????? | | ?????????????????????????????????????????????????? | | ?????????????????????????????????????????????????? | | ?????????????????????????????????????????????????? | | ?????????????????????????????????????????????????? | | ?????????????????????????????????????????????????? | | ?????????????????????????????????????????????????? | | ?????????????????????????????????????????????????? | | ?????????????????????????????????????????????????? | | ?????????????????????????????????????????????????? | | ?????????????????????????????????????????????????? | | ?????????????????????????????????????????????????? | | ?????????????????????????????????????????????????? | | ?????????????????????????????????????????????????? | | ?????????????????????????????????????????????????? | | ??????????????????????????????????????????? ????? | | ???????????????????????????????????????? % ???? | | ??????????????????????????????????????? ??? | | ????????????????????????###########??? % ??? | | ???????????????????????##%## #### ?? | | ???????????????????????#%&R##" #?? | | ???????????????????????## [** #?? | | ???????????????????????#!@#[#" ## #?? | | ???????????????????????##$### # #???????? | | ????????????????????????#### #???????? | | ???????????????????????????## ##???????? | | ????????????????????????????# # ###????????? | | ????????????????????????????## #??????????? | | ????????????????????????????## #??????????? | | ????????????????????????????# # #?????????? | | ????????????????????????????# #### #?????????? | | ????????????????????????????# #?? #### ?????? | | ?????????????#???????###????# ## ^ ????? | | ?????????????# ####?## ##???# #??????? | | ????????????## ## ##### #??????# | | ????????????# # ##?????? | | ????????????# # ###? ^##?????## | | ????????????# # #### ##### ##?????? | | ????????????## ###??## # ???????? | | ?????????????# #?### ????????? | | ?????????????# ## ## ???????? | | ?????????????## #?# #####??????? | | ??????????????## ### ##?# #?????????## | | ???????????????### "### #### ##???????## | | ?????????????????## " ## ######### | | ??????????????????# " " & ## ## ## | | ??????????????????# # ### ###### | +----------------------------------------------------+ Best States ------------- Heat Dissipation 35 Energy Generation 10 Energy Capacity 250 Matter Stores 300 Matter Capacity 300 Sight Range 16 Terrain Scan Density 10 Evasion (%) 40 Recoil Reduction 2 Item Schematics ----------------- None Robot Schematics ------------------ None Fabricated ------------ Nothing Alien Tech Used ----------------- None Achievements -------------- None Challenges ------------ None Game ------ Seed MultinovaLinkedStripper Manual? 0 Play Time 00:12:48 Cumulative 15.9 hours Start 2024.04.06 @ 20:17:08 End 2024.04.06 @ 20:28:23 Sessions 1 Manual Loads 0 Difficulty Rogue Special Mode None Game No. 22 Rogue 22 Adventurer 0 Explorer 0 Win Type - Total 0 Types 0/0/0/0/0/0/0/0/0 Lore% 17 Gallery% 17 Achievement% 15 Wizard Run 0 Options --------- Layout 0 ASCII 0 Keyboard 0 Movement Numpad Keybinds 0 Fullscreen 1 Font 18/SmallcapsGlow Map View 76x50 Zoom Use 0% Tactical HUD 1 Map Filters NONE Filters NONE Steam 1 RUN: 46452995-17ec-4761-9057-de5f55b6ef18